[Event "FIDE WCCC G12 2018"]
[Site "Santiago de Compostela"]
[Date "2018.11.11"]
[Round "7"]
[White "Mihelic, Vesna"]
[Black "Tsirekidze, Barbare"]
[Result "1-0"]
[ECO "B08"]
[WhiteElo "1741"]
[BlackElo "1611"]
[Annotator "NA RC"]
[PlyCount "115"]
[EventDate "2018.11.04"]
[EventType "swiss"]
[EventCountry "ESP"]
[SourceTitle "playchess.com"]
[Source "ChessBase"]
[SourceQuality "1"]
[TimeControl "40/5400+30:1800+30"]

1. e4 {[%emt 0:00:00]} d6 {[%emt 0:00:00]} 2. d4 {[%emt 0:00:00]} g6 {[%emt 0:00:00]} 3. Nc3 {[%emt 0:00:14]} Bg7 {[%emt 0:00:00]} 4. Nf3 {[%emt 0:00:25]} Nf6 {[%emt 0:01:14]} 5. Be2 {[%emt 0:01:41]} O-O {[%emt 0:01:40]} 6. O-O {[%emt 0:01:02]} c6 {[%emt 0:01:28]} 7. a4 {[%emt 0:02:15]} Nbd7 {[%emt 0:01:28]} 8. h3 {[%emt 0:05:55]} Qc7 {[%emt 0:06:17]} 9. Be3 {[%emt 0:04:29]} a6 {[%emt 0:03:47]} 10. Qd2 {[%emt 0:04:06]} e5 {[%emt 0:01:57]} 11. dxe5 {[%emt 0:01:18]} dxe5 {[%emt 0:00:22]} 12. Rfd1 {[%emt 0:02:43]} Re8 {[%emt 0:03:10]} 13. a5 {[%emt 0:03:23]} Bf8 {[%emt 0:07:33]} 14. Bc4 {[%emt 0:04:53]} Nc5 {[%emt 0:11:43]} 15. Ng5 {[%emt 0:07:04]} Be6 {[%emt 0:08:27]} 16. Nxe6 {[%emt 0:02:48]} Nxe6 {[%emt 0:02:13]} 17. Bb6 {[%emt 0:03:40]} Qe7 {[%emt 0:01:09]} 18. Bxe6 {[%emt 0:03:57]} Qxe6 {[%emt 0:00:30]} 19. Qd3 {[%emt 0:02:33]} Be7 {[%emt 0:10:32]} 20. Na4 {[%emt 0:07:56]} Bd8 {[%emt 0:05:29]} 21. Nc5 {[%emt 0:01:50]} Qe7 {[%emt 0:00:14]} 22. Qd6 {[%emt 0:02:15]} Bxb6 {[%emt 0:00:28]} 23. axb6 {[%emt 0:00:18]} Kg7 {[%emt 0:07:30]} 24. f3 {[%emt 0:03:19]} Nh5 {[%emt 0:05:05]} 25. Qxe7 {[%emt 0:02:05]} Rxe7 {[%emt 0:00:05]} 26. Rd2 {[%emt 0:01:24]} Nf4 {[%emt 0:00:53]} 27. Rad1 {[%emt 0:00:32]} Ne6 {[%emt 0:12:17]} 28. Nxe6+ {[%emt 0:01:58]} fxe6 {[%emt 0:00:29]} 29. Kf2 {[%emt 0:04:43]} a5 {[%emt 0:01:16]} 30. Rd8 {[%emt 0:00:26]} Ra6 {[%emt 0:02:43]} 31. R1d7 {[%emt 0:00:13]} Kf7 {[%emt 0:00:05]} 32. Rxe7+ {[%emt 0:01:35]} Kxe7 {[%emt 0:00:05]} 33. Rh8 {[%emt 0:00:12]} Rxb6 {[%emt 0:00:40]} 34. Rxh7+ {[%emt 0:00:06]} Kf6 {[%emt 0:00:35]} 35. b3 {[%emt 0:01:05]} Rb4 {[%emt 0:02:04]} 36. Ke3 {[%emt 0:01:39]} Kg5 {[%emt 0:01:39]} 37. h4+ {[%emt 0:00:21]} Kf6 {[%emt 0:00:02]} 38. g4 {[%emt 0:00:15]} g5 {[%emt 0:00:23]} 39. h5 {[%emt 0:00:29]} a4 {[%emt 0:00:13]} 40. bxa4 {[%emt 0:00:00]} Rxa4 {[%emt 0:00:00]} 41. Rxb7 {[%emt 0:01:16]} Ra3+ {[%emt 0:01:56]} 42. Rb3 {[%emt 0:01:32]} Ra4 {[%emt 0:01:09]} 43. Rc3 {[%emt 0:00:22]} Ra6 {[%emt 0:00:10]} 44. Rc5 {[%emt 0:00:07]} Ra3+ {[%emt 0:00:25]} 45. c3 {[%emt 0:00:09]} Ra6 {[%emt 0:00:11]} 46. Kd3 {[%emt 0:00:08]} Rb6 {[%emt 0:00:45]} 47. Kc4 {[%emt 0:00:12]} Rb2 {[%emt 0:01:00]} 48. Rxc6 {[%emt 0:00:51]} Rf2 {[%emt 0:00:06]} 49. Rc8 {[%emt 0:00:14]} Kg7 {[%emt 0:00:07]} 50. Rc7+ {[%emt 0:00:48]} Kf6 {[%emt 0:00:53]} 51. h6 {[%emt 0:00:16]} Rxf3 {[%emt 0:00:15]} 52. h7 {[%emt 0:00:09]} Rh3 {[%emt 0:00:04]} 53. Kb5 {[%emt 0:00:14]} Kg6 {[%emt 0:02:10]} 54. c4 {[%emt 0:00:07]} Rb3+ {[%emt 0:00:15]} 55. Kc6 {[%emt 0:00:10]} Rc3 {[%emt 0:01:05]} 56. h8=Q {[%emt 0:00:24]} Rxc4+ {[%emt 0:00:11]} 57. Kd6 {[%emt 0:00:22]} Rd4+ {[%emt 0:00:13]} 58. Ke7 {[%emt 0:00:54]} 1-0

[Event "FIDE WCCC G12 2018"]
[Site "Santiago de Compostela"]
[Date "2018.11.11"]
[Round "7"]
[White "Volovich, Julia"]
[Black "Munkhzul, Davaakhuu"]
[Result "1-0"]
[ECO "D15"]
[WhiteElo "1735"]
[BlackElo "1781"]
[Annotator "NA RC"]
[PlyCount "79"]
[EventDate "2018.11.04"]
[EventType "swiss"]
[EventCountry "ESP"]
[SourceTitle "playchess.com"]
[Source "ChessBase"]
[SourceQuality "1"]
[TimeControl "40/5400+30:1800+30"]

1. d4 {[%emt 0:00:00]} d5 {[%emt 0:00:00]} 2. c4 {[%emt 0:00:00]} c6 {[%emt 0:00:00]} 3. Nf3 {[%emt 0:00:00]} Nf6 {[%emt 0:00:00]} 4. Nc3 {[%emt 0:00:00]} a6 {[%emt 0:00:00]} 5. a4 {[%emt 0:00:03]} a5 {[%emt 0:00:18]} 6. cxd5 {[%emt 0:00:18]} cxd5 {[%emt 0:00:45]} 7. Bf4 {[%emt 0:00:25]} e6 {[%emt 0:06:57]} 8. e3 {[%emt 0:00:26]} Bd6 {[%emt 0:03:20]} 9. Bb5+ {[%emt 0:01:54]} Nc6 {[%emt 0:01:45]} 10. Ne5 {[%emt 0:01:09]} Bxe5 {[%emt 0:13:21]} 11. dxe5 {[%emt 0:01:37]} Ng8 {[%emt 0:02:01]} 12. Qg4 {[%emt 0:10:06]} Kf8 {[%emt 0:10:46]} 13. O-O {[%emt 0:14:33]} h5 {[%emt 0:01:50]} 14. Qg3 {[%emt 0:15:01]} h4 {[%emt 0:02:50]} 15. Qg4 {[%emt 0:02:52]} f5 {[%emt 0:01:06]} 16. Qg6 {[%emt 0:03:19]} Nce7 {[%emt 0:01:55]} 17. Qg5 {[%emt 0:01:47]} g6 {[%emt 0:10:30]} 18. g4 {[%emt 0:06:03]} b6 {[%emt 0:15:23]} 19. Ne2 {[%emt 0:03:49]} Kf7 {[%emt 0:08:21]} 20. Nd4 {[%emt 0:06:54]} Bb7 {[%emt 0:04:55]} 21. Kh1 {[%emt 0:12:21]} fxg4 {[%emt 0:02:39]} 22. Qxg4 {[%emt 0:00:41]} Nf5 {[%emt 0:04:26]} 23. Rg1 {[%emt 0:02:23]} Nge7 {[%emt 0:00:43]} 24. Bg5 {[%emt 0:01:34]} Bc8 {[%emt 0:05:15]} 25. Bxe7 {[%emt 0:03:33]} Nxe7 {[%emt 0:00:29]} 26. Qg5 {[%emt 0:00:11]} Qf8 {[%emt 0:00:49]} 27. Nc6 {[%emt 0:02:48]} Nxc6 {[%emt 0:01:38]} 28. Qf6+ {[%emt 0:01:14]} Ke8 {[%emt 0:00:22]} 29. Bxc6+ {[%emt 0:00:11]} Bd7 {[%emt 0:00:06]} 30. Qxe6+ {[%emt 0:00:46]} Qe7 {[%emt 0:00:06]} 31. Bxd7+ {[%emt 0:00:18]} Kd8 {[%emt 0:00:25]} 32. Qxe7+ {[%emt 0:00:06]} Kxe7 {[%emt 0:00:05]} 33. Bc6 {[%emt 0:00:19]} Raf8 {[%emt 0:00:34]} 34. f4 {[%emt 0:00:42]} d4 {[%emt 0:00:11]} 35. exd4 {[%emt 0:00:42]} Rxf4 {[%emt 0:00:08]} 36. d5 {[%emt 0:00:31]} Rg8 {[%emt 0:00:27]} 37. Raf1 {[%emt 0:00:42]} Rb4 {[%emt 0:00:46]} 38. Rf6 {[%emt 0:00:27]} g5 {[%emt 0:00:42]} 39. Rgf1 {[%emt 0:00:32]} Rxb2 {[%emt 0:00:39]} 40. d6+ {[%emt 0:00:00] Rh8} 1-0

[Event "FIDE WCCC G12 2018"]
[Site "Santiago de Compostela"]
[Date "2018.11.11"]
[Round "7"]
[White "Hernandez Tellez, Claudia"]
[Black "Kovacsi, Sara Kata"]
[Result "1/2-1/2"]
[ECO "B51"]
[WhiteElo "1721"]
[BlackElo "1554"]
[Annotator "NA RC"]
[PlyCount "64"]
[EventDate "2018.11.04"]
[EventType "swiss"]
[EventCountry "ESP"]
[SourceTitle "playchess.com"]
[Source "ChessBase"]
[SourceQuality "1"]
[TimeControl "40/5400+30:1800+30"]

1. e4 {[%emt 0:00:00]} c5 {[%emt 0:00:00]} 2. Nf3 {[%emt 0:00:00]} d6 {[%emt 0:00:00]} 3. Bb5+ {[%emt 0:00:20]} Nd7 {[%emt 0:00:07]} 4. d4 {[%emt 0:00:37]} cxd4 {[%emt 0:00:00]} 5. Qxd4 {[%emt 0:00:34]} a6 {[%emt 0:00:00]} 6. Bxd7+ {[%emt 0:01:08]} Bxd7 {[%emt 0:00:06]} 7. Nc3 {[%emt 0:03:42]} Nf6 {[%emt 0:00:58]} 8. h3 {[%emt 0:01:13]} e5 {[%emt 0:05:43]} 9. Qd3 {[%emt 0:00:52]} h6 {[%emt 0:00:15]} 10. O-O {[%emt 0:00:56]} Rc8 {[%emt 0:06:51]} 11. Rd1 {[%emt 0:02:55]} Qc7 {[%emt 0:04:39]} 12. Be3 {[%emt 0:06:45]} Be7 {[%emt 0:01:42]} 13. Nd2 {[%emt 0:09:51]} b5 {[%emt 0:02:17]} 14. a3 {[%emt 0:08:58]} O-O {[%emt 0:06:19]} 15. Rac1 {[%emt 0:03:37]} Qb7 {[%emt 0:06:27]} 16. Nb3 {[%emt 0:07:20]} Rfd8 {[%emt 0:08:38]} 17. Nd5 {[%emt 0:07:20]} Nxd5 {[%emt 0:01:03]} 18. exd5 {[%emt 0:00:13]} Bf6 {[%emt 0:05:01]} 19. c3 {[%emt 0:01:08]} Re8 {[%emt 0:08:41]} 20. Nd2 {[%emt 0:02:55]} Be7 {[%emt 0:04:37]} 21. f3 {[%emt 0:01:26]} f5 {[%emt 0:04:12]} 22. g4 {[%emt 0:04:05]} Rf8 {[%emt 0:07:44]} 23. Kg2 {[%emt 0:00:22]} Rf6 {[%emt 0:12:59]} 24. Rf1 {[%emt 0:01:52]} Rcf8 {[%emt 0:02:50]} 25. Rf2 {[%emt 0:06:18]} R6f7 {[%emt 0:02:43]} 26. Rff1 {[%emt 0:02:03]} Bh4 {[%emt 0:02:13]} 27. Nb3 {[%emt 0:02:20]} Bd8 {[%emt 0:03:43]} 28. Rcd1 {[%emt 0:01:16]} Bb6 {[%emt 0:00:47]} 29. Bxb6 {[%emt 0:01:42]} Qxb6 {[%emt 0:00:03]} 30. Qe2 {[%emt 0:00:18]} a5 {[%emt 0:01:31]} 31. Nc1 {[%emt 0:07:19]} fxg4 {[%emt 0:01:24]} 32. hxg4 {[%emt 0:00:21]} Bc8 {[%emt 0:00:43]} 1/2-1/2

[Event "FIDE WCCC G12 2018"]
[Site "Santiago de Compostela"]
[Date "2018.11.11"]
[Round "7"]
[White "Rueda Nessi, Juana"]
[Black "Nurmanova, Alua"]
[Result "0-1"]
[ECO "B23"]
[WhiteElo "1642"]
[BlackElo "1780"]
[Annotator "NA RC"]
[PlyCount "84"]
[EventDate "2018.11.04"]
[EventType "swiss"]
[EventCountry "ESP"]
[SourceTitle "playchess.com"]
[Source "ChessBase"]
[SourceQuality "1"]
[TimeControl "40/5400+30:1800+30"]

1. e4 {[%emt 0:00:00]} c5 {[%emt 0:00:00]} 2. Nc3 {[%emt 0:00:00]} d6 {[%emt 0:00:00]} 3. f4 {[%emt 0:00:00]} Nc6 {[%emt 0:00:15]} 4. Nf3 {[%emt 0:00:00]} Nf6 {[%emt 0:02:25]} 5. Bc4 {[%emt 0:01:22]} g6 {[%emt 0:11:14]} 6. d3 {[%emt 0:02:13]} Bg7 {[%emt 0:00:23]} 7. O-O {[%emt 0:00:34]} O-O {[%emt 0:01:56]} 8. Qe1 {[%emt 0:07:22]} e6 {[%emt 0:17:50]} 9. Nh4 {[%emt 0:23:11]} Nd4 {[%emt 0:13:19]} 10. Bb3 {[%emt 0:10:32]} d5 {[%emt 0:06:59]} 11. Nf3 {[%emt 0:05:10]} a6 {[%emt 0:12:02]} 12. e5 {[%emt 0:10:36]} Nxf3+ {[%emt 0:02:05]} 13. Rxf3 {[%emt 0:00:12]} Nd7 {[%emt 0:02:49]} 14. Nd1 {[%emt 0:05:37]} b5 {[%emt 0:04:28]} 15. c3 {[%emt 0:01:47]} c4 {[%emt 0:05:00]} 16. dxc4 {[%emt 0:01:23]} dxc4 {[%emt 0:01:21]} 17. Bc2 {[%emt 0:00:07]} Bb7 {[%emt 0:00:32]} 18. Re3 {[%emt 0:01:24]} Nc5 {[%emt 0:03:59]} 19. Nf2 {[%emt 0:01:01]} Qe7 {[%emt 0:03:21]} 20. Ne4 {[%emt 0:01:56]} Bxe4 {[%emt 0:02:10]} 21. Bxe4 {[%emt 0:00:16]} Ra7 {[%emt 0:00:45]} 22. Bd2 {[%emt 0:06:14]} Rd8 {[%emt 0:00:16]} 23. Rd1 {[%emt 0:00:19]} Rad7 {[%emt 0:01:06]} 24. Qf2 {[%emt 0:04:27]} Bf8 {[%emt 0:01:13]} 25. Bc2 {[%emt 0:01:03]} Rd5 {[%emt 0:00:51]} 26. Re2 {[%emt 0:03:56]} Qd7 {[%emt 0:01:42]} 27. Kh1 {[%emt 0:01:32]} Nd3 {[%emt 0:01:09]} 28. Bxd3 {[%emt 0:00:15]} Rxd3 {[%emt 0:00:04]} 29. Qb6 {[%emt 0:01:39]} Qc8 {[%emt 0:00:54]} 30. Qf2 {[%emt 0:01:26]} Bc5 {[%emt 0:00:57]} 31. Qe1 {[%emt 0:00:43]} Qd7 {[%emt 0:00:21]} 32. a4 {[%emt 0:04:45]} b4 {[%emt 0:00:54]} 33. h4 {[%emt 0:01:38]} h5 {[%emt 0:01:24]} 34. Kh2 {[%emt 0:01:40]} bxc3 {[%emt 0:00:23]} 35. bxc3 {[%emt 0:00:07]} Ba3 {[%emt 0:01:16]} 36. a5 {[%emt 0:02:06]} Bb2 {[%emt 0:00:27]} 37. Qf2 {[%emt 0:00:12]} Bxc3 {[%emt 0:00:19]} 38. Bxc3 {[%emt 0:00:09]} Rxd1 {[%emt 0:00:04]} 39. Qb6 {[%emt 0:00:52]} Qd3 {[%emt 0:01:12]} 40. Re3 {[%emt 0:00:00]} Qf1 {[%emt 0:00:00]} 41. Re1 {[%emt 0:06:42]} Qxf4+ {[%emt 0:04:27]} 42. g3 {[%emt 0:01:58]} R8d2+ {[%emt 0:00:11]} 0-1

[Event "FIDE WCCC G12 2018"]
[Site "Santiago de Compostela"]
[Date "2018.11.11"]
[Round "7"]
[White "Zavivaeva, Emilia"]
[Black "Sevcikova, Lucia"]
[Result "1-0"]
[ECO "B13"]
[WhiteElo "1633"]
[BlackElo "1768"]
[Annotator "NA RC"]
[PlyCount "97"]
[EventDate "2018.11.04"]
[EventType "swiss"]
[EventCountry "ESP"]
[SourceTitle "playchess.com"]
[Source "ChessBase"]
[SourceQuality "1"]
[TimeControl "40/5400+30:1800+30"]

1. e4 {[%emt 0:00:30]} c6 {[%emt 0:00:00]} 2. d4 {[%emt 0:00:16]} d5 {[%emt 0:00:00]} 3. exd5 {[%emt 0:00:09]} cxd5 {[%emt 0:00:00]} 4. Bd3 {[%emt 0:00:05]} Nc6 {[%emt 0:00:02]} 5. c3 {[%emt 0:00:04]} Qc7 {[%emt 0:00:24]} 6. h3 {[%emt 0:05:40]} Nf6 {[%emt 0:00:11]} 7. Nf3 {[%emt 0:02:54]} e6 {[%emt 0:02:04]} 8. O-O {[%emt 0:03:47]} Bd6 {[%emt 0:01:15]} 9. Re1 {[%emt 0:02:13]} O-O {[%emt 0:02:12]} 10. Bg5 {[%emt 0:02:50]} Nd7 {[%emt 0:04:47]} 11. Be3 {[%emt 0:01:57]} a6 {[%emt 0:03:11]} 12. Nbd2 {[%emt 0:03:57]} b5 {[%emt 0:04:30]} 13. a4 {[%emt 0:06:26]} b4 {[%emt 0:12:03]} 14. c4 {[%emt 0:02:46]} dxc4 {[%emt 0:05:37]} 15. Nxc4 {[%emt 0:01:27]} Be7 {[%emt 0:03:12]} 16. Rc1 {[%emt 0:01:01]} Qb7 {[%emt 0:02:45]} 17. Be4 {[%emt 0:01:34]} Nf6 {[%emt 0:06:35]} 18. Na5 {[%emt 0:02:07]} Qc7 {[%emt 0:03:43]} 19. Bxc6 {[%emt 0:01:15]} Rb8 {[%emt 0:02:06]} 20. Nb3 {[%emt 0:00:56]} Qd6 {[%emt 0:01:47]} 21. Ne5 {[%emt 0:01:20]} Nd5 {[%emt 0:03:20]} 22. Bxd5 {[%emt 0:01:31]} Qxd5 {[%emt 0:00:17]} 23. Nc6 {[%emt 0:00:22]} Rb7 {[%emt 0:00:23]} 24. Nxe7+ {[%emt 0:01:27]} Rxe7 {[%emt 0:00:08]} 25. Nc5 {[%emt 0:00:23]} Rd8 {[%emt 0:01:47]} 26. Qb3 {[%emt 0:05:10]} Qxb3 {[%emt 0:03:36]} 27. Nxb3 {[%emt 0:00:23]} Bd7 {[%emt 0:01:37]} 28. Nc5 {[%emt 0:00:39]} Be8 {[%emt 0:00:43]} 29. Nxa6 {[%emt 0:01:26]} Bxa4 {[%emt 0:00:20]} 30. Nxb4 {[%emt 0:00:14]} Rb7 {[%emt 0:00:31]} 31. Nd3 {[%emt 0:03:03]} Be8 {[%emt 0:01:45]} 32. Rc3 {[%emt 0:01:43]} h6 {[%emt 0:00:34]} 33. Rec1 {[%emt 0:00:51]} Bd7 {[%emt 0:00:58]} 34. b3 {[%emt 0:01:57]} Rb5 {[%emt 0:01:28]} 35. Ne5 {[%emt 0:01:36]} Be8 {[%emt 0:00:52]} 36. Rc8 {[%emt 0:02:10]} Rb8 {[%emt 0:00:20]} 37. Rxd8 {[%emt 0:01:36]} Rxd8 {[%emt 0:01:40]} 38. Bd2 {[%emt 0:11:09]} f6 {[%emt 0:03:36]} 39. Nf3 {[%emt 0:01:43]} Bh5 {[%emt 0:00:59]} 40. Ba5 {[%emt 0:00:00]} Rd5 {[%emt 0:00:00]} 41. b4 {[%emt 0:08:22]} Bxf3 {[%emt 0:02:11]} 42. gxf3 {[%emt 0:00:39]} Rxd4 {[%emt 0:00:17]} 43. b5 {[%emt 0:00:52]} Rd5 {[%emt 0:00:47]} 44. Rb1 {[%emt 0:02:51]} Rd7 {[%emt 0:01:05]} 45. b6 {[%emt 0:00:27]} Rb7 {[%emt 0:00:22]} 46. Rc1 {[%emt 0:00:10]} Kh7 {[%emt 0:00:14]} 47. Rc7 {[%emt 0:00:09]} Rb8 {[%emt 0:01:53]} 48. b7 {[%emt 0:00:06]} e5 {[%emt 0:00:03]} 49. Bb6 {[%emt 0:00:07]} 1-0

[Event "FIDE WCCC G12 2018"]
[Site "Santiago de Compostela"]
[Date "2018.11.11"]
[Round "7"]
[White "Alimova, Dana"]
[Black "Boramanikar Tanisha S"]
[Result "1/2-1/2"]
[ECO "B24"]
[WhiteElo "1628"]
[BlackElo "1716"]
[Annotator "NA RC"]
[PlyCount "181"]
[EventDate "2018.11.04"]
[EventType "swiss"]
[EventCountry "ESP"]
[SourceTitle "playchess.com"]
[Source "ChessBase"]
[SourceQuality "1"]
[TimeControl "40/5400+30:1800+30"]

1. e4 {[%emt 0:00:00]} c5 {[%emt 0:00:00]} 2. Nc3 {[%emt 0:00:00]} Nc6 {[%emt 0:00:00]} 3. Bb5 {[%emt 0:00:00]} Nd4 {[%emt 0:01:42]} 4. Nf3 {[%emt 0:00:00]} Nxb5 {[%emt 0:02:33]} 5. Nxb5 {[%emt 0:00:06]} g6 {[%emt 0:04:48]} 6. d4 {[%emt 0:03:32]} Bg7 {[%emt 0:07:26]} 7. c3 {[%emt 0:17:16]} Qa5 {[%emt 0:21:16]} 8. Na3 {[%emt 0:18:53]} cxd4 {[%emt 0:16:26]} 9. Nxd4 {[%emt 0:00:39]} Nf6 {[%emt 0:01:20]} 10. f3 {[%emt 0:09:23]} O-O {[%emt 0:04:04]} 11. O-O {[%emt 0:01:09]} Qh5 {[%emt 0:01:37]} 12. c4 {[%emt 0:08:07]} d6 {[%emt 0:08:00]} 13. Be3 {[%emt 0:08:40]} Bd7 {[%emt 0:02:07]} 14. Nb1 {[%emt 0:04:06]} Rac8 {[%emt 0:08:37]} 15. Qd3 {[%emt 0:01:12]} Bc6 {[%emt 0:06:37]} 16. Nc3 {[%emt 0:02:59]} b6 {[%emt 0:05:04]} 17. Nd5 {[%emt 0:03:07]} Bxd5 {[%emt 0:00:37]} 18. cxd5 {[%emt 0:00:24]} Nd7 {[%emt 0:00:41]} 19. Nc6 {[%emt 0:02:17]} Rfe8 {[%emt 0:02:36]} 20. Bd4 {[%emt 0:02:33]} Ne5 {[%emt 0:02:34]} 21. Bxe5 {[%emt 0:05:27]} Bxe5 {[%emt 0:00:05]} 22. Nxe5 {[%emt 0:00:43]} Qxe5 {[%emt 0:00:14]} 23. Rab1 {[%emt 0:01:02]} f5 {[%emt 0:01:41]} 24. Rfe1 {[%emt 0:05:05]} f4 {[%emt 0:01:07]} 25. Qb5 {[%emt 0:02:33]} Qd4+ {[%emt 0:00:18]} 26. Kh1 {[%emt 0:00:20]} Red8 {[%emt 0:00:29]} 27. Rbd1 {[%emt 0:01:16]} Qc4 {[%emt 0:00:28]} 28. Qxc4 {[%emt 0:00:52]} Rxc4 {[%emt 0:00:04]} 29. Rd2 {[%emt 0:00:24]} Rdc8 {[%emt 0:00:12]} 30. Kg1 {[%emt 0:00:11]} Rc2 {[%emt 0:00:18]} 31. Red1 {[%emt 0:00:16]} Kf7 {[%emt 0:00:34]} 32. Kf2 {[%emt 0:00:13]} Kf6 {[%emt 0:00:19]} 33. Ke2 {[%emt 0:00:12]} Ke5 {[%emt 0:00:23]} 34. Kd3 {[%emt 0:01:45]} Rc1 {[%emt 0:00:30]} 35. Rxc1 {[%emt 0:00:28]} Rxc1 {[%emt 0:00:05]} 36. Ke2 {[%emt 0:00:10]} g5 {[%emt 0:00:50]} 37. Kf2 {[%emt 0:01:12]} h5 {[%emt 0:00:28]} 38. h3 {[%emt 0:00:34]} a5 {[%emt 0:00:27]} 39. a3 {[%emt 0:00:28]} b5 {[%emt 0:00:11]} 40. Ke2 {[%emt 0:00:00]} g4 {[%emt 0:00:00]} 41. hxg4 {[%emt 0:00:37]} hxg4 {[%emt 0:01:31]} 42. Kf2 {[%emt 0:00:43]} Rc4 {[%emt 0:03:58]} 43. Ke2 {[%emt 0:03:17]} g3 {[%emt 0:00:46]} 44. Kf1 {[%emt 0:02:42]} b4 {[%emt 0:00:44]} 45. axb4 {[%emt 0:00:50]} axb4 {[%emt 0:00:18]} 46. Ke2 {[%emt 0:00:36]} b3 {[%emt 0:01:02]} 47. Rd3 {[%emt 0:01:57]} Rc2+ {[%emt 0:00:17]} 48. Rd2 {[%emt 0:00:11]} Rc1 {[%emt 0:00:29]} 49. Rd1 {[%emt 0:00:26]} Rc8 {[%emt 0:03:00]} 50. Rd3 {[%emt 0:00:21]} Rh8 {[%emt 0:01:44]} 51. Rd2 {[%emt 0:00:39]} Rh1 {[%emt 0:01:10]} 52. Kd3 {[%emt 0:01:41]} Rc1 {[%emt 0:01:51]} 53. Ke2 {[%emt 0:00:32]} Kf6 {[%emt 0:02:14]} 54. Rd1 {[%emt 0:01:18]} Rc2+ {[%emt 0:01:42]} 55. Rd2 {[%emt 0:00:09]} Rc8 {[%emt 0:01:06]} 56. Rd3 {[%emt 0:00:17]} Rh8 {[%emt 0:00:33]} 57. Rd2 {[%emt 0:00:38]} e5 {[%emt 0:01:21]} 58. Kd3 {[%emt 0:00:43]} Rc8 {[%emt 0:00:19]} 59. Ke2 {[%emt 0:00:21]} Ke7 {[%emt 0:00:08]} 60. Rd3 {[%emt 0:00:33]} Rh8 {[%emt 0:00:33]} 61. Rd2 {[%emt 0:00:23]} Kd7 {[%emt 0:00:35]} 62. Kd3 {[%emt 0:00:47]} Rc8 {[%emt 0:00:04]} 63. Ke2 {[%emt 0:00:05]} Kc7 {[%emt 0:00:38]} 64. Rd3 {[%emt 0:00:51]} Rh8 {[%emt 0:00:06]} 65. Rd2 {[%emt 0:00:04]} Kb6 {[%emt 0:00:36]} 66. Kd3 {[%emt 0:00:44]} Rc8 {[%emt 0:00:06]} 67. Ke2 {[%emt 0:00:06]} Kb5 {[%emt 0:00:12]} 68. Rd1 {[%emt 0:00:45]} Kb4 {[%emt 0:00:24]} 69. Rd3 {[%emt 0:01:42]} Rh8 {[%emt 0:00:25]} 70. Rd2 {[%emt 0:00:22]} Kc4 {[%emt 0:00:21]} 71. Rd1 {[%emt 0:00:34]} Rh2 {[%emt 0:01:05]} 72. Rg1 {[%emt 0:00:17]} Kb4 {[%emt 0:00:33]} 73. Kd2 {[%emt 0:00:14]} Rh7 {[%emt 0:00:22]} 74. Ke2 {[%emt 0:00:21]} Rc7 {[%emt 0:00:08]} 75. Rd1 {[%emt 0:00:16]} Rc2+ {[%emt 0:00:50]} 76. Rd2 {[%emt 0:00:06]} Kc4 {[%emt 0:04:24]} 77. Rxc2+ {[%emt 0:05:22]} bxc2 {[%emt 0:00:02]} 78. Kd2 {[%emt 0:00:12]} Kd4 {[%emt 0:00:22]} 79. b4 {[%emt 0:00:22]} c1=Q+ {[%emt 0:05:26]} 80. Kxc1 {[%emt 0:00:08]} Kc4 {[%emt 0:00:04]} 81. Kc2 {[%emt 0:00:13]} Kxb4 {[%emt 0:00:05]} 82. Kb2 {[%emt 0:00:05]} Kc4 {[%emt 0:00:20]} 83. Kc2 {[%emt 0:00:06]} Kb4 {[%emt 0:00:50]} 84. Kb2 {[%emt 0:00:04]} Kb5 {[%emt 0:00:10]} 85. Kb3 {[%emt 0:00:05]} Kc5 {[%emt 0:00:06]} 86. Kc3 {[%emt 0:00:04]} Kb5 {[%emt 0:00:04]} 87. Kb3 {[%emt 0:00:02]} Ka5 {[%emt 0:00:25]} 88. Ka3 {[%emt 0:00:09]} Kb5 {[%emt 0:00:16]} 89. Kb3 {[%emt 0:00:04]} Kc5 {[%emt 0:00:03]} 90. Kc3 {[%emt 0:00:04]} Kb5 {[%emt 0:00:09]} 91. Kb3 {[%emt 0:00:04]} 1/2-1/2

[Event "FIDE WCCC G12 2018"]
[Site "Santiago de Compostela"]
[Date "2018.11.11"]
[Round "7"]
[White "Voriskova, Anna"]
[Black "Ivanova, Dilyana"]
[Result "1-0"]
[ECO "B40"]
[WhiteElo "1601"]
[BlackElo "1775"]
[Annotator "NA RC"]
[PlyCount "81"]
[EventDate "2018.11.04"]
[EventType "swiss"]
[EventCountry "ESP"]
[SourceTitle "playchess.com"]
[Source "ChessBase"]
[SourceQuality "1"]
[TimeControl "40/5400+30:1800+30"]

1. e4 {[%emt 0:00:00]} c5 {[%emt 0:00:00]} 2. Nf3 {[%emt 0:00:00]} e6 {[%emt 0:00:00]} 3. d3 {[%emt 0:00:00]} Nc6 {[%emt 0:00:15]} 4. g3 {[%emt 0:00:04]} Nge7 {[%emt 0:00:23]} 5. Bg2 {[%emt 0:00:35]} g6 {[%emt 0:00:30]} 6. O-O {[%emt 0:00:23]} Bg7 {[%emt 0:00:06]} 7. Re1 {[%emt 0:00:37]} d6 {[%emt 0:00:23]} 8. c3 {[%emt 0:03:02]} e5 {[%emt 0:00:14]} 9. c4 {[%emt 0:03:03]} O-O {[%emt 0:03:27]} 10. Nc3 {[%emt 0:02:09]} h6 {[%emt 0:04:10]} 11. Nh4 {[%emt 0:07:20]} g5 {[%emt 0:05:37]} 12. Nf3 {[%emt 0:01:21]} f5 {[%emt 0:03:19]} 13. exf5 {[%emt 0:03:14]} Nxf5 {[%emt 0:02:34]} 14. Nd5 {[%emt 0:07:48]} Nfd4 {[%emt 0:04:06]} 15. Nxd4 {[%emt 0:02:12]} exd4 {[%emt 0:10:42]} 16. f4 {[%emt 0:10:39]} g4 {[%emt 0:03:31]} 17. a3 {[%emt 0:03:01]} Bf5 {[%emt 0:11:31]} 18. b4 {[%emt 0:02:19]} Rf7 {[%emt 0:03:45]} 19. Qe2 {[%emt 0:04:50]} Kf8 {[%emt 0:05:19]} 20. Be4 {[%emt 0:06:23]} Bxe4 {[%emt 0:05:34]} 21. Qxe4 {[%emt 0:00:53]} Qd7 {[%emt 0:03:57]} 22. Bd2 {[%emt 0:02:51]} Ne7 {[%emt 0:04:58]} 23. Nxe7 {[%emt 0:03:36]} Rxe7 {[%emt 0:00:51]} 24. Qd5 {[%emt 0:02:05]} Rc8 {[%emt 0:01:33]} 25. Rxe7 {[%emt 0:02:39]} Kxe7 {[%emt 0:01:01]} 26. Re1+ {[%emt 0:01:48]} Kd8 {[%emt 0:02:25]} 27. Re6 {[%emt 0:01:53]} Bf8 {[%emt 0:04:45]} 28. f5 {[%emt 0:03:13]} Kc7 {[%emt 0:05:31]} 29. bxc5 {[%emt 0:04:18]} dxc5 {[%emt 0:01:22]} 30. Bf4+ {[%emt 0:00:50]} Kd8 {[%emt 0:00:20]} 31. Bd6 {[%emt 0:02:03]} Bg7 {[%emt 0:01:42]} 32. Re7 {[%emt 0:01:17]} Qxe7 {[%emt 0:01:58]} 33. Bxe7+ {[%emt 0:00:07]} Kxe7 {[%emt 0:00:10]} 34. Qxb7+ {[%emt 0:00:08]} Kd8 {[%emt 0:00:20]} 35. Qxg7 {[%emt 0:00:07]} Rc7 {[%emt 0:00:48]} 36. Qxh6 {[%emt 0:00:36]} Ke8 {[%emt 0:00:20]} 37. f6 {[%emt 0:00:09]} Rf7 {[%emt 0:00:08]} 38. Qg6 {[%emt 0:00:15]} a5 {[%emt 0:00:21]} 39. Qg8+ {[%emt 0:00:14]} Rf8 {[%emt 0:00:08]} 40. Qe6+ {[%emt 0:00:00]} Kd8 {[%emt 0:00:00]} 41. Qe7+ {[%emt 0:00:15]} 1-0